bitfinex-derivatives/quotes_ETHF0:USTF0_20250220
["timestamp","ask_amount","ask_price","bid_price","bid_amount"]
[1740013112073,2.391,2730.4,2730.3,0.73257]
[1740013112472,2.391,2730.4,2730.2,0.00187205]
[1740013112680,2.391,2730.4,2730.3,0.73257]
[1740013115872,2.391,2730.4,2730.2,0.73446205]
[1740013116071,2.391,2730.4,2730.2,0.00187205]
[1740013116273,3.99938587,2730.3,2730.2,0.00187205]
[1740013116778,3.26681587,2730.3,2730.2,0.00187205]
[1740013117174,3.2078,2730.3,2730.2,0.00187205]
[1740013117477,2.391,2730.4,2730.2,0.00187205]
[1740013117678,0.05902024,2730.3,2730.2,0.00187205]
[1740013118671,2.391,2730.4,2730.2,0.00187205]
[1740013118882,2.391,2730.4,2730.3,0.73257]
[1740013120775,4.8689,2730.6,2730.4,0.73253]
[1740013120978,2.391,2730.5,2730.4,0.73253]
[1740013122082,2.391,2730.5,2730.2,0.58707205]
[1740013122284,2.391,2730.5,2730.4,0.73255]
[1740013124883,3.2078,2730.6,2730.2,0.58707205]
[1740013125084,2.391,2730.5,2730.2,0.58707205]
[1740013125280,2.391,2730.5,2730.4,0.73255]
[1740013128585,1.1484,2730.6,2730.2,0.58707205]
[1740013128586,1.1484,2730.6,2730.5,0.73252]
[1740013128787,2.9761,2730.6,2730.5,0.73252]
[1740013128985,0.5851,2730.6,2730.5,0.73252]
[1740013129290,0.00549511,2730.7,2730.6,0.73249]
[1740013130175,0.00549511,2730.7,2730.6,4.31395145]
[1740013130378,0.00549511,2730.7,2730.6,3.94029]
[1740013131386,0.00549511,2730.7,2730.6,4.31386528]
[1740013131586,0.00549511,2730.7,2730.6,3.94029]
[1740013134490,0.00549511,2730.7,2730.6,9.94029]
[1740013136480,0.00549511,2730.7,2730.6,3.94029]
[1740013136885,0.00549511,2730.7,2730.6,9.94029]
[1740013137787,0.00549511,2730.7,2730.6,3.94029]
[1740013138296,0.5458,2731.2,2731.1,0.73236]
[1740013141591,0.54839511,2731.4,2731.3,0.73231]
[1740013153111,0.54839511,2731.4,2730.9,3.2078]
[1740013153312,0.54839511,2731.4,2731.3,0.73231]
[1740013153807,0.54839511,2731.4,2730.9,3.2078]
[1740013154007,2.389,2731.3,2730.9,3.2078]
[1740013154212,0.73238,2731.1,2730.6,0.73249]
[1740013154415,1.1346,2731.0,2730.6,0.73249]
[1740013154612,2.389,2730.9,2730.6,0.73249]
[1740013155121,2.389,2730.9,2730.5,3.2078]
[1740013155617,2.389,2730.9,2730.5,3.94032]
[1740013155810,2.389,2730.9,2730.5,3.2078]
[1740013156011,2.389,2730.9,2730.6,0.73248]
[1740013156513,2.389,2730.9,2730.5,3.2078]
[1740013156714,2.389,2730.9,2730.7,0.73245]
[1740013158119,2.389,2730.9,2730.6,0.73248]
[1740013158415,0.05900734,2730.8,2730.6,0.73248]
[1740013158620,2.389,2730.9,2730.7,0.73245]
[1740013159623,2.389,2730.9,2730.5,3.2078]
[1740013159624,2.389,2730.9,2730.5,3.9403]
[1740013161419,2.389,2730.9,2730.5,3.2078]
[1740013161619,2.389,2730.9,2730.6,0.73248]
[1740013161826,2.389,2730.9,2730.7,0.73246]
[1740013162721,2.389,2730.9,2730.8,0.73244]
[1740013162912,2.44900478,2730.9,2730.8,0.73244]
[1740013163222,2.44900478,2730.9,2730.7,0.73245]
[1740013163421,2.39,2730.9,2730.7,0.73245]
[1740013163617,2.39,2730.9,2730.5,3.2078]
[1740013163822,2.39,2730.9,2730.8,0.73244]
[1740013164124,2.44900478,2730.9,2730.7,0.73245]
[1740013164326,2.39,2730.9,2730.7,0.73245]
[1740013164624,2.39,2730.9,2730.6,0.73248]
[1740013164923,2.39,2730.9,2730.5,3.2078]
[1740013165127,2.39,2730.9,2730.7,0.73245]
[1740013166123,2.39,2730.9,2730.5,3.2078]
[1740013166313,0.05900632,2730.8,2730.5,3.2078]
[1740013166926,0.05900632,2730.8,2730.5,3.9403]
[1740013167426,0.05900632,2730.8,2730.6,0.73248]
[1740013167819,5.5978,2730.9,2730.6,0.73248]
[1740013168125,0.05900906,2730.8,2730.6,0.73248]
[1740013169016,0.05900906,2730.8,2730.5,3.2078]
[1740013169627,0.05900906,2730.8,2730.6,0.73249]
[1740013170924,0.79146906,2730.8,2730.5,3.2078]
[1740013171228,0.73249,2730.6,2730.2,0.73446205]
[1740013171424,4.1032,2730.5,2730.4,0.73255]
[1740013172225,0.5889,2730.5,2730.4,0.73255]
[1740013172523,2.9789,2730.5,2730.4,0.73255]
[1740013173226,2.9789,2730.5,2730.2,0.00187205]
[1740013173535,0.5759,2730.4,2730.3,0.73256]
[1740013178222,2.9789,2730.5,2730.2,0.54627205]
[1740013178419,2.9789,2730.5,2730.4,0.73255]
[1740013187441,0.5889,2730.5,2730.4,0.73255]
[1740013192235,5.5978,2730.7,2730.6,0.73249]
[1740013192636,3.2078,2730.7,2730.6,0.73249]
[1740013196041,3.2078,2730.7,2730.3,3.7846]
[1740013196245,3.2078,2730.7,2730.4,0.37363937]
[1740013196445,3.2078,2730.7,2730.3,3.7846]
[1740013196644,3.2078,2730.7,2730.4,0.37361212]
[1740013196845,3.2078,2730.7,2730.3,3.7846]
[1740013197043,3.2078,2730.7,2730.4,0.37361088]
[1740013197244,3.2078,2730.7,2730.3,3.7846]
[1740013197438,0.73244,2730.8,2730.4,0.3735818]
[1740013197745,4.24683,2730.9,2730.3,3.7846]
[1740013197940,4.24683,2730.9,2730.4,0.37356109]
[1740013198249,0.73246,2730.8,2730.3,3.7846]
[1740013198539,0.73246,2730.8,2730.4,0.37355245]
[1740013198743,0.73246,2730.8,2730.3,3.7846]
[1740013198947,0.73246,2730.8,2730.4,0.3735489]
[1740013199148,0.73247,2730.7,2730.3,3.7846]
[1740013199449,0.73247,2730.7,2730.4,0.37351325]
[1740013199646,0.73247,2730.7,2730.3,3.7846]
[1740013199848,3.5144,2730.9,2730.4,0.37351632]
[1740013200047,3.5144,2730.9,2730.3,3.7846]
[1740013200246,3.2078,2730.6,2730.2,0.00187205]
[1740013200546,0.73257,2730.3,2730.2,0.00187205]
[1740013200849,0.05901579,2730.3,2730.2,0.00187205]
[1740013201145,0.5553,2730.4,2730.2,0.00187205]
[1740013201449,0.73257,2730.3,2730.2,0.00187205]
[1740013201649,0.5553,2730.4,2730.2,0.00187205]
[1740013202342,3.7616,2730.3,2729.6,3.2078]
[1740013202550,0.73276,2729.6,2729.3,3.2078]
[1740013202746,0.73283,2729.4,2729.0,0.5648]
[1740013202943,0.73286,2729.3,2729.1,0.37408974]
[1740013203139,0.73288,2729.2,2729.0,0.5648]
[1740013203345,1.095,2729.5,2728.8,44.0078]
[1740013203545,0.73292,2729.1,2728.9,0.37376893]
[1740013203740,0.5412,2729.0,2728.8,44.01329511]
[1740013203948,0.00549511,2729.4,2728.8,3.21329511]
[1740013204144,0.00549511,2729.4,2729.1,3.2078]
[1740013204443,0.73287,2729.2,2729.1,3.2078]
[1740013204651,3.12187,2729.2,2729.1,3.2078]
[1740013205042,3.12187,2729.2,2728.8,3.21329511]
[1740013205043,0.73295,2728.9,2728.8,3.21329511]
[1740013205442,0.73295,2728.9,2728.8,0.00549511]
[1740013206247,1.29215,2728.9,2728.8,0.00549511]
[1740013208050,0.5725,2729.1,2728.8,0.00549511]
[1740013208243,2.389,2729.2,2728.8,0.00549511]
[1740013208447,3.2078,2729.3,2728.8,3.21329511]
[1740013208639,3.2078,2729.3,2728.9,1.144]
[1740013208843,0.73288,2729.2,2728.9,1.144]
[1740013209045,1.28711511,2729.4,2728.9,1.144]
[1740013209253,0.00549511,2729.4,2729.1,3.2078]
[1740013209443,0.73285,2729.3,2729.1,3.2078]
[1740013209644,0.55429511,2729.4,2729.1,3.2078]
[1740013209841,0.73285,2729.3,2729.1,3.2078]
[1740013210054,0.73285,2729.3,2729.2,40.8]
[1740013210447,0.73285,2729.3,2729.1,3.2078]
[1740013210950,0.73285,2729.3,2729.1,44.0078]
[1740013211450,0.73285,2729.3,2729.1,3.2078]
[1740013211755,0.73287,2729.2,2729.1,3.2078]
[1740013212956,0.73286,2729.3,2729.1,3.2078]
[1740013213256,0.73287,2729.2,2729.1,3.2078]
[1740013213756,0.00549511,2729.4,2729.1,3.2078]
[1740013213757,0.73832511,2729.4,2729.1,3.2078]
[1740013214251,0.00549511,2729.4,2729.1,3.2078]
[1740013214453,0.00549511,2729.4,2729.2,1.26635]
[1740013214853,0.00549511,2729.4,2729.3,0.73284]
[1740013215056,0.5692,2730.0,2729.3,0.73284]
[1740013215252,0.73273,2729.7,2729.6,3.2078]
[1740013215754,0.73277,2729.6,2729.3,3.2078]
[1740013216252,0.73282,2729.4,2729.3,3.2078]
[1740013216852,0.00549511,2729.7,2729.3,3.2078]
[1740013217057,0.00549511,2729.7,2729.4,0.5387]
[1740013217058,0.73278,2729.6,2729.4,0.5387]
[1740013217252,0.73276,2729.6,2729.4,0.5387]
[1740013217758,0.73824511,2729.7,2729.4,0.5387]
[1740013217951,0.73276,2729.6,2729.5,0.5766]
[1740013218154,0.00549511,2729.7,2729.5,0.5766]
[1740013218358,0.00549511,2729.7,2729.6,3.2078]
[1740013218655,0.73272,2729.8,2729.6,3.7739]
[1740013218862,0.7327,2729.9,2729.6,3.7739]
[1740013219560,0.579,2730.1,2729.6,3.7739]
[1740013219761,0.73816511,2730.0,2729.6,4.50666]
[1740013220452,0.00549511,2730.0,2729.9,3.2078]
[1740013222062,0.00549511,2730.0,2729.9,3.7854]
[1740013222659,0.00549511,2730.0,2729.9,4.51808]
[1740013223164,0.00549511,2730.0,2729.9,3.7854]
[1740013223762,0.73814511,2730.0,2729.9,3.7854]
[1740013224064,0.73814511,2730.0,2729.9,3.2078]
[1740013224567,0.00549511,2730.0,2729.6,4.3589]
[1740013224863,0.73273,2729.7,2729.6,3.7928]
[1740013225254,0.73273,2729.7,2729.6,3.2078]
[1740013225762,0.73271,2729.8,2729.6,3.2078]
[1740013225962,0.00549511,2730.0,2729.7,0.73272]
[1740013226163,0.00549511,2730.0,2729.9,3.2078]
[1740013226364,0.00549511,2730.0,2729.9,3.94048]
[1740013227061,0.00549511,2730.0,2729.9,3.2078]
[1740013227266,0.73814511,2730.0,2729.9,3.2078]
[1740013228066,0.00549511,2730.0,2729.9,3.2078]
[1740013228569,0.73814511,2730.0,2729.9,3.2078]
[1740013230875,0.73273,2729.7,2729.6,3.2078]
[1740013231065,1.83716511,2730.0,2729.1,1.0913]
[1740013231066,0.73284,2729.3,2729.2,3.2078]
[1740013231965,0.73295,2728.9,2728.8,3.21329511]
[1740013236670,2.393,2729.1,2728.8,3.21329511]
[1740013236876,0.73295,2728.9,2728.8,3.21329511]
[1740013237671,0.73293,2729.0,2728.8,3.21329511]
[1740013237872,1.29607,2729.2,2728.8,3.21329511]
[1740013238869,3.12483,2729.4,2729.1,3.2078]
[1740013239072,1.28658,2729.6,2729.1,3.94069]
[1740013239277,1.28658,2729.6,2728.9,1.1351]
[1740013239278,0.5538,2729.6,2729.4,3.2078]
[1740013239467,0.73279,2729.5,2729.4,3.2078]
[1740013239871,0.73279,2729.5,2729.1,3.94069]
[1740013240170,0.73283,2729.4,2729.1,3.2078]
[1740013240367,1.28657,2729.6,2729.1,3.94068]
[1740013240571,2.392,2729.8,2729.4,3.2078]
[1740013240779,0.73276,2729.7,2729.4,3.2078]
[1740013240972,0.73272,2729.8,2729.4,3.2078]
[1740013241274,0.55929511,2730.0,2729.5,0.54]
[1740013241776,0.73276,2729.6,2729.5,0.54]
[1740013243379,0.73272,2729.8,2729.5,0.54]
[1740013243568,0.73272,2729.8,2729.7,3.2078]
[1740013245874,0.55929511,2730.0,2729.5,0.54]
[1740013246178,3.76709511,2730.0,2729.2,3.2078]
[1740013246377,1.89074232,2729.9,2728.9,1.1107]
[1740013246585,0.73292,2729.0,2728.9,0.5506]
[1740013247086,0.73295,2728.9,2728.8,3.21329511]
[1740013252579,0.73294,2729.0,2728.8,3.21329511]
[1740013253182,0.73295,2728.9,2728.8,3.21329511]
[1740013253383,0.73287,2729.2,2728.8,3.21329511]
[1740013253585,0.5412,2729.3,2728.8,3.21329511]
[1740013253981,0.73291,2729.1,2728.9,0.5456]
[1740013254479,2.395,2729.5,2728.9,0.5456]
[1740013254679,0.5445,2729.6,2729.2,3.2078]
[1740013254875,0.73282,2729.4,2729.2,3.2078]
[1740013255078,0.5788,2729.8,2729.2,3.2078]
[1740013255278,0.5788,2729.8,2729.5,3.2078]
[1740013255478,1.31151,2729.8,2729.5,3.2078]
[1740013255886,0.73275,2729.7,2729.5,3.2078]
[1740013256987,0.73276,2729.6,2729.5,3.2078]
[1740013257291,0.73275,2729.7,2729.5,3.2078]
[1740013257679,0.5788,2729.8,2729.5,3.2078]
[1740013257886,0.73276,2729.6,2729.5,3.2078]
[1740013261094,0.73276,2729.6,2728.8,0.00549511]
[1740013261095,0.73295,2728.9,2728.8,3.21329511]
[1740013262188,3.2078,2729.3,2728.8,3.21329511]
[1740013262387,0.73294,2729.0,2728.8,3.21329511]
[1740013262794,2.9314,2729.5,2728.8,3.21329511]
[1740013262991,2.9314,2729.5,2728.9,0.73293]
[1740013263194,0.73284,2729.3,2729.1,3.2078]
[1740013263383,2.9314,2729.5,2729.1,3.94069]
[1740013263587,0.73283,2729.4,2729.1,3.2078]
[1740013263782,0.73285,2729.3,2729.1,3.2078]
[1740013263985,2.402,2729.4,2729.0,0.5545]
[1740013264193,0.73295,2728.9,2728.8,3.21329511]
[1740013267999,0.5739,2729.1,2728.8,3.21329511]
[1740013268296,0.5544,2729.2,2728.8,3.21329511]
[1740013268489,0.73292,2729.0,2728.8,3.21329511]
[1740013269096,0.73295,2728.9,2728.8,3.21329511]
[1740013269808,3.14095,2728.9,2728.8,0.00549511]
[1740013270687,2.408,2728.9,2728.8,0.00549511]
[1740013270891,0.73295,2728.9,2728.8,0.00549511]
[1740013276999,0.79200486,2728.9,2728.8,0.00549511]
[1740013277903,0.79200602,2728.9,2728.8,0.00549511]
[1740013279099,0.73311,2728.3,2728.2,3.7802]
[1740013280102,0.73311,2728.3,2728.2,3.2078]
[1740013281704,0.73311,2728.3,2728.0,0.00549511]
[1740013281705,9.2078,2728.3,2728.0,0.00549511]
[1740013282002,3.05157084,2728.2,2727.3,3.2078]
[1740013282209,2.49107084,2728.1,2727.6,3.2078]
[1740013282403,0.73325,2727.8,2727.7,0.5463]
[1740013282603,2.432,2728.1,2727.3,44.0078]
[1740013282805,2.432,2728.1,2727.4,0.5463]
[1740013282806,0.73334,2727.5,2727.4,0.5463]
[1740013283108,0.73334,2727.5,2727.4,0.55179511]
[1740013284608,3.94099,2728.0,2727.4,1.28513511]
[1740013284810,2.433,2728.1,2727.6,3.2078]
[1740013285010,0.73327,2727.7,2727.6,3.2078]
[1740013285812,2.437,2728.0,2727.6,3.2078]
[1740013286117,0.73327,2727.7,2727.6,3.2078]
[1740013286308,2.437,2728.0,2727.6,3.2078]
[1740013286512,0.73326,2727.8,2727.6,3.2078]
[1740013286710,2.437,2728.0,2727.6,3.2078]
[1740013286911,0.73323,2727.9,2727.6,3.2078]
[1740013287213,2.437,2728.2,2727.6,3.94109]
[1740013287409,2.437,2728.2,2727.6,6.9161]
[1740013287707,0.5561,2728.4,2727.6,6.9161]
[1740013287708,2.437,2728.4,2727.9,3.2078]
[1740013287913,0.73313,2728.3,2728.0,1.7367]
[1740013288101,0.00549511,2728.5,2728.0,4.7117]
[1740013288412,0.7331,2728.4,2728.2,3.2078]
[1740013288910,0.00549511,2728.5,2728.2,3.94093]
[1740013289305,3.2078,2728.9,2728.2,3.94093]
[1740013289306,3.2078,2728.9,2728.3,2.975]
[1740013289506,3.2078,2728.9,2728.4,40.8]
[1740013289905,0.73303,2728.6,2728.5,0.5898]
[1740013290205,0.73302,2728.7,2728.5,3.7976]
[1740013290411,3.2078,2729.2,2728.5,3.7976]
[1740013290712,0.73303,2728.6,2728.5,6.7726]
[1740013290912,0.73303,2728.6,2728.5,3.7976]
[1740013292410,0.73303,2728.6,2728.5,3.2078]
[1740013294310,0.5751,2728.8,2728.5,3.2078]
[1740013294514,3.16999,2728.8,2728.5,3.2078]
[1740013294713,3.16999,2728.8,2728.6,0.566]
[1740013294714,0.733,2728.7,2728.6,0.566]
[1740013296017,0.733,2728.7,2728.6,1.1568]
[1740013296212,0.00549511,2728.9,2728.6,1.1568]
[1740013296417,0.00549511,2728.9,2728.6,1.6915]
[1740013296712,0.00549511,2728.9,2728.8,3.2078]
[1740013297013,0.7328,2729.5,2728.8,3.2078]
[1740013297312,2.438,2729.7,2729.2,3.2078]
[1740013297613,0.73284,2729.3,2729.2,3.2078]
[1740013298211,0.00549511,2729.5,2729.2,3.2078]
[1740013298412,0.00549511,2729.5,2729.3,1.6358]
[1740013298711,0.73828511,2729.5,2729.3,1.6358]
[1740013298916,0.73828511,2729.5,2729.3,45.4108]
[1740013298917,0.00549511,2729.5,2729.3,45.4108]
[1740013299417,0.00549511,2729.5,2729.3,42.4358]
[1740013300319,0.73829511,2729.5,2729.3,42.4358]
[1740013300711,0.00549511,2729.5,2729.3,42.4358]
[1740013300907,0.00549511,2729.5,2729.3,43.16864]
[1740013301111,0.00549511,2729.5,2729.4,0.73282]
[1740013302620,0.00549511,2729.5,2729.3,45.89954205]
[1740013303117,0.00549511,2729.5,2729.3,4.36672205]
[1740013303314,0.00549511,2729.5,2729.4,2.975]
[1740013304221,0.00549511,2729.5,2729.4,3.70782]
[1740013304614,0.00549511,2729.5,2729.4,2.975]
[1740013304815,0.00549511,2729.5,2729.4,3.70782]
[1740013305017,0.00549511,2729.5,2729.4,2.975]
[1740013305912,0.73828511,2729.5,2729.4,2.975]
[1740013307721,0.00549511,2729.5,2729.4,2.975]
[1740013308613,0.00549511,2729.5,2729.4,3.70782]
[1740013309014,0.00549511,2729.5,2729.4,2.975]
[1740013309420,0.00549511,2729.5,2729.4,3.70782]
[1740013309616,0.00549511,2729.5,2729.4,2.975]
[1740013310013,0.00549511,2729.5,2729.4,3.70782]
[1740013311017,0.00549511,2729.5,2729.4,0.73282]
[1740013312224,0.00549511,2729.5,2729.3,5.08665789]
[1740013312825,0.00549511,2729.5,2729.4,41.53282]
[1740013317141,2.99175,2730.3,2729.7,0.73272]
[1740013317142,0.73263,2730.1,2729.7,0.73272]
[1740013317339,1.1603,2730.3,2729.8,3.2078]
[1740013317841,0.57,2730.3,2729.8,3.2078]
[1740013318040,0.57,2730.3,2730.1,3.2078]
[1740013318437,0.57,2730.3,2730.1,3.9404]
[1740013318836,0.57,2730.3,2730.1,3.2078]
[1740013319035,0.57,2730.3,2730.1,3.94042]
[1740013320028,0.57,2730.3,2730.1,3.2078]
[1740013320644,0.57,2730.3,2730.1,3.94043]
[1740013321040,0.5388,2730.9,2730.1,3.2078]
[1740013321235,0.73247,2730.7,2730.6,3.2078]
[1740013321635,1.1546,2730.8,2730.6,3.2078]
[1740013322038,0.5658,2730.8,2730.6,6.1828]
[1740013322336,2.9882,2731.3,2730.7,40.8]
[1740013322337,0.00549511,2731.0,2730.7,40.8]
[1740013322540,0.00549511,2731.0,2730.7,43.775]
[1740013323041,0.00549511,2731.0,2730.9,3.2078]
[1740013323244,0.00549511,2731.0,2730.9,6.36221]
[1740013323646,0.00549511,2731.0,2730.9,5.6298]
[1740013324546,0.73788511,2731.0,2730.9,5.6298]
[1740013324943,0.00549511,2731.0,2730.9,5.6298]
[1740013325939,0.00549511,2731.0,2730.9,8.6048]
[1740013327742,0.5888,2731.6,2730.9,14.6048]
[1740013327943,1.32103,2731.6,2731.5,3.2078]
[1740013328244,0.73231,2731.3,2731.2,6.1828]
[1740013328541,0.5888,2731.6,2731.2,8.6018]
[1740013329343,0.73229,2731.4,2731.2,8.6018]
[1740013329739,0.5888,2731.6,2731.2,8.6018]
[1740013329947,0.7323,2731.4,2731.2,8.6018]
[1740013330143,0.5888,2731.6,2731.2,8.6018]
[1740013330442,0.73231,2731.3,2731.2,6.1828]
[1740013336347,0.5888,2731.6,2731.2,6.1828]
[1740013336643,0.73231,2731.3,2731.2,6.1828]
[1740013337345,0.73241,2730.9,2730.8,3.2078]
[1740013337541,1.1161,2731.2,2730.8,3.2078]
[1740013337846,0.73241,2730.9,2730.8,3.2078]
[1740013338143,1.1161,2731.2,2730.7,6.1828]
[1740013338349,1.1161,2731.2,2731.0,3.2078]
[1740013338350,1.27984,2731.2,2731.0,3.2078]
[1740013338550,0.5475,2731.2,2731.0,3.2078]
[1740013338849,1.27984,2731.2,2731.0,3.2078]
[1740013339351,0.5475,2731.2,2731.0,3.2078]
[1740013339557,0.73236,2731.1,2731.0,3.2078]
[1740013340050,1.27986,2731.2,2731.0,3.2078]
[1740013340446,0.73236,2731.1,2731.0,3.2078]
[1740013341448,1.27985,2731.2,2731.0,3.2078]
[1740013341649,0.5475,2731.2,2731.0,3.2078]
[1740013341857,0.73236,2731.1,2731.0,3.2078]
[1740013342243,0.5475,2731.2,2731.0,3.2078]
[1740013342650,1.27984,2731.2,2731.0,3.2078]
[1740013343156,0.73236,2731.1,2731.0,3.2078]
[1740013343758,1.27985,2731.2,2731.0,3.2078]
[1740013344252,0.73236,2731.1,2731.0,3.7917]
[1740013344653,0.5475,2731.2,2731.0,3.7917]
[1740013344858,1.27986,2731.2,2731.0,3.7917]
[1740013345258,0.73236,2731.1,2731.0,3.7917]
[1740013346257,0.73236,2731.1,2731.0,3.2078]
[1740013349451,0.5475,2731.2,2731.0,3.2078]
[1740013350156,0.5363,2731.4,2731.0,3.2078]
[1740013350355,1.26859,2731.4,2731.1,0.5323]
[1740013350544,0.73233,2731.2,2731.1,0.5323]
[1740013351151,0.73236,2731.1,2731.0,3.2078]
[1740013352452,5.6198,2731.3,2730.6,3.50393583]
[1740013352755,0.73247,2730.7,2730.6,3.2078]
[1740013353451,0.73247,2730.7,2730.6,3.49363948]
[1740013353655,1.1572,2731.0,2730.6,3.49363948]
[1740013353858,1.30159,2731.0,2730.9,3.2078]
[1740013354757,1.30159,2731.0,2730.6,3.49954513]
[1740013354758,0.73245,2730.8,2730.6,3.49954513]
[1740013354952,0.73245,2730.8,2730.6,3.2078]
[1740013355157,0.73243,2730.9,2730.6,3.2078]
[1740013355458,0.73243,2730.9,2730.7,0.37275335]
[1740013355655,0.73241,2730.9,2730.6,3.2078]
[1740013355861,4.781,2731.4,2730.6,3.2078]
[1740013355862,2.9503,2731.4,2730.7,0.37270529]
[1740013356058,2.9636634,2731.7,2731.0,3.2078]
[1740013356366,2.412,2731.6,2731.1,1.7447]
[1740013356550,0.7358634,2731.7,2731.3,3.2078]
[1740013356861,0.0036634,2731.7,2731.6,3.2078]
[1740013357357,0.7358634,2731.7,2731.6,3.2078]
[1740013357551,0.0036634,2731.7,2731.6,3.2078]
[1740013357756,0.5416,2732.1,2731.6,3.58022029]
[1740013357963,1.2737,2732.1,2731.7,0.37242029]
[1740013358262,0.73214,2731.9,2731.8,0.37242029]
[1740013358459,0.73213,2732.0,2731.8,0.37242029]
[1740013358661,0.73213,2732.0,2731.9,0.37242029]
[1740013358857,0.73213,2732.0,2731.9,3.57991768]
[1740013359457,0.73209,2732.1,2731.9,3.57991768]
[1740013359656,0.73209,2732.1,2731.9,3.2078]
[1740013360163,1.1218,2732.5,2732.0,0.37184636]
[1740013360355,0.73205,2732.3,2731.9,3.2078]
[1740013360562,0.73205,2732.3,2732.0,0.37159549]
[1740013360760,0.73205,2732.3,2731.9,3.2078]
[1740013360961,1.1218,2732.5,2732.0,0.37160449]
[1740013361262,3.2078,2733.2,2732.2,3.2078]
[1740013361467,0.5375,2733.0,2732.5,3.2078]
[1740013361661,0.73196,2732.6,2732.5,3.2078]
[1740013361969,0.5457,2733.1,2732.5,3.2078]
[1740013362561,0.73192,2732.8,2732.5,3.2078]
[1740013363270,0.73185,2733.0,2732.5,3.2078]
[1740013363574,0.5457,2733.1,2732.5,3.2078]
[1740013363763,0.73191,2732.8,2732.5,3.2078]
[1740013364061,0.5457,2733.1,2732.5,3.2078]
[1740013364062,0.73185,2733.0,2732.5,3.2078]
[1740013364267,0.73188,2732.9,2732.5,3.2078]
[1740013364564,0.73188,2732.9,2732.6,40.8]
[1740013364965,0.73191,2732.8,2732.6,40.8]
[1740013365356,0.5457,2733.1,2732.6,40.8]
[1740013365551,0.5457,2733.1,2732.5,3.2078]
[1740013365953,0.73192,2732.8,2732.5,3.2078]
[1740013366164,0.73196,2732.6,2732.5,3.2078]
[1740013368359,0.73194,2732.7,2732.5,3.2078]
[1740013368560,0.5891,2733.0,2732.5,3.2078]
[1740013368770,3.69154,2733.1,2732.5,3.2078]
[1740013368970,0.73187,2733.0,2732.5,3.2078]
[1740013369170,0.73188,2732.9,2732.5,3.7776]
[1740013369674,0.5457,2733.1,2732.5,3.7776]
[1740013369866,0.5457,2733.1,2732.5,6.1906]
[1740013370068,0.5457,2733.1,2732.8,3.2078]
[1740013370267,0.5375,2733.4,2732.8,3.2078]
[1740013370466,0.5375,2733.4,2733.1,3.2078]
[1740013370663,1.26925,2733.4,2733.1,3.2078]
[1740013370864,0.5375,2733.4,2733.1,3.2078]
[1740013371765,0.7318,2733.2,2733.1,3.2078]
[1740013371965,0.73178,2733.3,2733.1,3.2078]
[1740013372169,0.5375,2733.4,2733.1,3.2078]
[1740013372563,0.73177,2733.3,2733.1,3.2078]
[1740013374172,0.73178,2733.3,2733.1,3.2078]
[1740013374372,0.5375,2733.4,2733.1,3.2078]
[1740013374567,0.73177,2733.3,2733.1,3.2078]
[1740013374872,0.5375,2733.4,2733.1,3.2078]
[1740013375072,0.73177,2733.3,2733.1,3.2078]
[1740013375771,0.73179,2733.3,2733.1,3.2078]
[1740013376674,0.5375,2733.4,2733.1,3.2078]
[1740013377163,0.7318,2733.2,2733.1,3.2078]
[1740013377874,0.73178,2733.3,2733.1,3.2078]
[1740013378067,0.5375,2733.4,2733.1,3.2078]
[1740013378273,0.7318,2733.2,2733.1,3.2078]
[1740013380675,1.0964,2733.4,2732.9,3.5647]
[1740013380974,0.73182,2733.2,2732.9,3.5647]
[1740013381175,0.73178,2733.3,2733.1,3.2078]
[1740013381373,0.5375,2733.4,2733.1,3.2078]
[1740013381574,0.73177,2733.3,2733.1,3.2078]
[1740013381970,0.5375,2733.4,2733.1,3.2078]
[1740013382174,0.7318,2733.2,2733.1,3.2078]
[1740013383679,0.73177,2733.3,2733.1,3.2078]
[1740013383975,0.5375,2733.4,2733.1,3.2078]
[1740013384178,3.6559,2735.6,2733.2,2.9844]
[1740013384370,0.73145,2734.5,2734.4,3.2078]
[1740013384571,1.1355,2734.7,2734.4,3.2078]
[1740013384765,3.2078,2735.5,2734.5,40.8]
[1740013384766,0.5472,2735.3,2734.5,40.8]
[1740013384980,0.5472,2735.3,2734.7,3.2078]
[1740013385477,3.2078,2734.9,2734.3,43.775]
[1740013385775,2.411,2734.8,2734.3,43.775]
[1740013385975,2.411,2734.8,2734.3,2.975]
[1740013386180,0.73148,2734.4,2734.3,2.975]
[1740013386369,0.73152,2734.3,2734.1,3.2078]
[1740013386675,2.96,2735.2,2734.1,3.2078]
[1740013386871,0.5472,2735.3,2734.5,3.2078]
[1740013386872,3.2078,2735.0,2734.5,3.2078]
[1740013387066,0.5472,2735.3,2734.1,2.975]
[1740013387067,3.2078,2734.7,2734.1,2.975]
[1740013387377,0.73154,2734.2,2734.0,3.2078]
[1740013387676,2.445,2734.3,2733.8,3.5418]
[1740013387876,2.445,2734.3,2733.7,3.2078]
[1740013387877,3.0092,2734.2,2733.6,0.00549511]
[1740013388175,0.73166,2733.7,2733.6,0.00549511]
[1740013388382,3.18366,2733.7,2733.6,0.00549511]
[1740013388677,3.74306,2733.7,2733.6,0.00549511]
[1740013388873,0.73182,2733.1,2733.0,4.80695015]
[1740013389079,3.18482,2733.1,2733.0,4.80695015]
[1740013389270,9.18482,2733.1,2733.0,4.80695015]
[1740013389570,3.18482,2733.1,2733.0,4.80695015]
[1740013389979,3.73562,2733.1,2733.0,4.80695015]
[1740013390377,9.0038,2733.1,2732.8,0.00548496]
[1740013390573,0.73204,2732.3,2732.2,3.2078]